[Event "Titled Tuesday Blitz August 08 Early 2023"]
[White "Papayan, Oleg"]
[Black "Golubev, Mikhail"]
[WhiteFideId "4193911"]
[BlackFideId "14100983"]
[WhiteElo "2492"]
[BlackElo "2658"]
[Result "1-0"]
[Round "5"]
[TimeControl "180+1"]
[Date "2023.08.08"]
[WhiteClock "0:01:22"]
[BlackClock "0:00:00"]
[Board "107"]

1. e4 {[%clk 0:02:40]}  c5 {[%clk 0:02:59]} 2. Nf3 {[%clk 0:02:40]}  d6 {[%clk 0:02:59]} 3. d4 {[%clk 0:02:41]}  cxd4 {[%clk 0:02:59]} 4. Qxd4 {[%clk 0:02:42]}  Nf6 {[%clk 0:02:57]} 5. Nc3 {[%clk 0:02:42]}  a6 {[%clk 0:02:53]} 6. e5 {[%clk 0:02:42]}  Nc6 {[%clk 0:02:49]} 7. Qa4 {[%clk 0:02:42]}  dxe5 {[%clk 0:02:17]} 8. Nxe5 {[%clk 0:02:43]}  Bd7 {[%clk 0:02:12]} 9. Nxd7 {[%clk 0:02:43]}  Qxd7 {[%clk 0:01:56]} 10. Be3 {[%clk 0:02:44]}  Rc8 {[%clk 0:01:43]} 11. Rd1 {[%clk 0:02:43]}  Qc7 {[%clk 0:01:42]} 12. Be2 {[%clk 0:02:30]}  e6 {[%clk 0:01:38]} 13. O-O {[%clk 0:02:30]}  Bd6 {[%clk 0:01:31]} 14. h3 {[%clk 0:02:28]}  O-O {[%clk 0:01:29]} 15. Bg5 {[%clk 0:02:27]}  Be5 {[%clk 0:01:16]} 16. Rd3 {[%clk 0:02:19]}  h6 {[%clk 0:01:09]} 17. Be3 {[%clk 0:02:15]}  b5 {[%clk 0:00:58]} 18. Qh4 {[%clk 0:02:09]}  b4 {[%clk 0:00:44]} 19. Na4 {[%clk 0:02:09]}  Nd5 {[%clk 0:00:40]} 20. Bd2 {[%clk 0:02:01]}  Nf4 {[%clk 0:00:30]} 21. Bxf4 {[%clk 0:01:59]}  Bxf4 {[%clk 0:00:31]} 22. Rdd1 {[%clk 0:01:52]}  a5 {[%clk 0:00:19]} 23. Bd3 {[%clk 0:01:47]}  Bg5 {[%clk 0:00:19]} 24. Qe4 {[%clk 0:01:46]}  g6 {[%clk 0:00:18]} 25. h4 {[%clk 0:01:46]}  Bf6 {[%clk 0:00:14]} 26. h5 {[%clk 0:01:47]}  Ne5 {[%clk 0:00:11]} 27. hxg6 {[%clk 0:01:47]}  Nxg6 {[%clk 0:00:08]} 28. b3 {[%clk 0:01:41]}  Qf4 {[%clk 0:00:07]} 29. Rfe1 {[%clk 0:01:36]}  Qxe4 {[%clk 0:00:06]} 30. Rxe4 {[%clk 0:01:37]}  Rfd8 {[%clk 0:00:06]} 31. Nb6 {[%clk 0:01:32]}  Rb8 {[%clk 0:00:05]} 32. Nc4 {[%clk 0:01:31]}  a4 {[%clk 0:00:04]} 33. bxa4 {[%clk 0:01:31]}  Be7 {[%clk 0:00:02]} 34. Rg4 {[%clk 0:01:31]}  Kf8 {[%clk 0:00:02]} 35. Re1 {[%clk 0:01:28]}  Bc5 {[%clk 0:00:01]} 36. Bxg6 {[%clk 0:01:22]}  fxg6 {[%clk 0:00:00]} 37. Ne5 {[%clk 0:01:22]} 1-0


[Site "https://www.chess.com"]

[Event "Titled Tuesday Blitz August 08 Early 2023"]
[White "Brunner, Nicolas"]
[Black "Goh, Wei Ming Kevin"]
[WhiteFideId "620246"]
[BlackFideId "5800706"]
[WhiteElo "2490"]
[BlackElo "2654"]
[Result "1-0"]
[Round "5"]
[TimeControl "180+1"]
[Date "2023.08.08"]
[WhiteClock "0:00:19"]
[BlackClock "0:00:00"]
[Board "108"]

1. Nf3 {[%clk 0:02:40]}  c5 {[%clk 0:02:58]} 2. c4 {[%clk 0:02:38]}  Nc6 {[%clk 0:02:58]} 3. g3 {[%clk 0:02:39]}  g6 {[%clk 0:02:57]} 4. Bg2 {[%clk 0:02:39]}  Bg7 {[%clk 0:02:57]} 5. O-O {[%clk 0:02:39]}  d6 {[%clk 0:02:57]} 6. Nc3 {[%clk 0:02:39]}  e5 {[%clk 0:02:58]} 7. Ne1 {[%clk 0:02:37]}  Be6 {[%clk 0:02:56]} 8. d3 {[%clk 0:02:37]}  Nge7 {[%clk 0:02:55]} 9. Nc2 {[%clk 0:02:37]}  d5 {[%clk 0:02:56]} 10. cxd5 {[%clk 0:02:36]}  Nxd5 {[%clk 0:02:57]} 11. Ne3 {[%clk 0:02:37]}  Nb6 {[%clk 0:02:57]} 12. a4 {[%clk 0:02:33]}  Rc8 {[%clk 0:02:39]} 13. a5 {[%clk 0:02:28]}  Nd7 {[%clk 0:02:39]} 14. a6 {[%clk 0:02:27]}  b6 {[%clk 0:02:37]} 15. Nb5 {[%clk 0:02:22]}  Ndb8 {[%clk 0:02:37]} 16. Nc4 {[%clk 0:02:19]}  O-O {[%clk 0:02:25]} 17. Ncd6 {[%clk 0:02:18]}  Nd4 {[%clk 0:02:11]} 18. Nxd4 {[%clk 0:01:50]}  Qxd6 {[%clk 0:02:10]} 19. Nxe6 {[%clk 0:01:50]}  Qxe6 {[%clk 0:02:11]} 20. Qa4 {[%clk 0:01:48]}  Nc6 {[%clk 0:02:10]} 21. Be3 {[%clk 0:01:45]}  Rfd8 {[%clk 0:02:06]} 22. Rac1 {[%clk 0:01:41]}  Nb4 {[%clk 0:01:51]} 23. Bd2 {[%clk 0:01:36]}  Bf8 {[%clk 0:01:41]} 24. Bb7 {[%clk 0:01:31]}  Rb8 {[%clk 0:01:31]} 25. Bxb4 {[%clk 0:01:30]}  cxb4 {[%clk 0:01:32]} 26. Rc6 {[%clk 0:01:30]}  Qf5 {[%clk 0:01:25]} 27. Qc2 {[%clk 0:01:15]}  Bc5 {[%clk 0:01:21]} 28. Rc7 {[%clk 0:01:08]}  Bd6 {[%clk 0:01:09]} 29. Be4 {[%clk 0:01:07]}  Qe6 {[%clk 0:01:00]} 30. Rxa7 {[%clk 0:01:07]}  Rdc8 {[%clk 0:00:56]} 31. Qa4 {[%clk 0:01:06]}  f5 {[%clk 0:00:55]} 32. Bb7 {[%clk 0:01:03]}  Rc7 {[%clk 0:00:52]} 33. Qb5 {[%clk 0:01:02]}  Bc5 {[%clk 0:00:46]} 34. Ra8 {[%clk 0:00:47]}  Rxa8 {[%clk 0:00:31]} 35. Bxa8 {[%clk 0:00:47]}  f4 {[%clk 0:00:20]} 36. Kg2 {[%clk 0:00:44]}  Ra7 {[%clk 0:00:13]} 37. Be4 {[%clk 0:00:37]}  Kg7 {[%clk 0:00:13]} 38. f3 {[%clk 0:00:30]}  Qc8 {[%clk 0:00:13]} 39. Ra1 {[%clk 0:00:29]}  Qc7 {[%clk 0:00:07]} 40. g4 {[%clk 0:00:27]}  Qd6 {[%clk 0:00:07]} 41. Qc4 {[%clk 0:00:26]}  Qf6 {[%clk 0:00:05]} 42. Bb7 {[%clk 0:00:20]}  h5 {[%clk 0:00:05]} 43. gxh5 {[%clk 0:00:19]}  Qg5+ {[%clk 0:00:04]} 44. Kh1 {[%clk 0:00:19]}  Qxh5 {[%clk 0:00:00]} 45. Qd5 {[%clk 0:00:19]} 1-0


[Site "https://www.chess.com"]

[Event "Titled Tuesday Blitz August 08 Early 2023"]
[White "Piesik, Piotr"]
[Black "Ocido, Michael"]
[WhiteFideId "1136194"]
[BlackFideId "115201920"]
[WhiteElo "2650"]
[BlackElo "2490"]
[Result "1-0"]
[Round "5"]
[TimeControl "180+1"]
[Date "2023.08.08"]
[WhiteClock "0:01:48"]
[BlackClock "0:00:03"]
[Board "110"]

1. Nf3 {[%clk 0:02:57]}  d5 {[%clk 0:02:59]} 2. g3 {[%clk 0:02:57]}  Nf6 {[%clk 0:02:58]} 3. Bg2 {[%clk 0:02:58]}  e6 {[%clk 0:02:59]} 4. O-O {[%clk 0:02:53]}  Be7 {[%clk 0:02:59]} 5. d3 {[%clk 0:02:54]}  O-O {[%clk 0:02:58]} 6. Nbd2 {[%clk 0:02:54]}  c5 {[%clk 0:02:58]} 7. e4 {[%clk 0:02:53]}  dxe4 {[%clk 0:02:56]} 8. dxe4 {[%clk 0:02:53]}  Nc6 {[%clk 0:02:56]} 9. c3 {[%clk 0:02:53]}  b6 {[%clk 0:02:56]} 10. Qe2 {[%clk 0:02:53]}  Qc7 {[%clk 0:02:51]} 11. Re1 {[%clk 0:02:53]}  Bb7 {[%clk 0:02:45]} 12. Nf1 {[%clk 0:02:52]}  Rad8 {[%clk 0:02:43]} 13. Bf4 {[%clk 0:02:52]}  e5 {[%clk 0:02:34]} 14. Bg5 {[%clk 0:02:52]}  Nxe4 {[%clk 0:02:15]} 15. Qxe4 {[%clk 0:02:38]}  Nd4 {[%clk 0:02:14]} 16. Qxe5 {[%clk 0:01:55]}  Bd6 {[%clk 0:00:14]} 17. Bxd8 {[%clk 0:01:53]}  Bxe5 {[%clk 0:00:07]} 18. Bxc7 {[%clk 0:01:48]}  Bxf3 {[%clk 0:00:03]} 1-0


[Site "https://www.chess.com"]

[Event "Titled Tuesday Blitz August 08 Early 2023"]
[White "Kleiman, Jake"]
[Black "Yashmetov, Mikhail"]
[WhiteFideId "2020041"]
[BlackFideId "24198900"]
[WhiteElo "2646"]
[BlackElo "2485"]
[Result "1-0"]
[Round "5"]
[TimeControl "180+1"]
[Date "2023.08.08"]
[WhiteClock "0:01:02"]
[BlackClock "0:00:00"]
[Board "112"]

1. e4 {[%clk 0:03:00]}  c5 {[%clk 0:02:56]} 2. Nf3 {[%clk 0:02:59]}  Nc6 {[%clk 0:02:52]} 3. c3 {[%clk 0:02:59]}  d5 {[%clk 0:02:51]} 4. exd5 {[%clk 0:02:59]}  Qxd5 {[%clk 0:02:50]} 5. d4 {[%clk 0:03:00]}  Nf6 {[%clk 0:02:47]} 6. Na3 {[%clk 0:02:56]}  cxd4 {[%clk 0:02:44]} 7. Nb5 {[%clk 0:02:56]}  Qd8 {[%clk 0:02:44]} 8. Nbxd4 {[%clk 0:02:53]}  Nxd4 {[%clk 0:02:44]} 9. Nxd4 {[%clk 0:02:53]}  e6 {[%clk 0:02:41]} 10. Bd3 {[%clk 0:02:51]}  Be7 {[%clk 0:02:32]} 11. O-O {[%clk 0:02:51]}  O-O {[%clk 0:02:31]} 12. Qe2 {[%clk 0:02:51]}  Bd7 {[%clk 0:02:16]} 13. Bf4 {[%clk 0:02:47]}  Qb6 {[%clk 0:02:12]} 14. Rad1 {[%clk 0:02:40]}  Rfd8 {[%clk 0:02:10]} 15. Rfe1 {[%clk 0:02:40]}  Ba4 {[%clk 0:01:48]} 16. Rd2 {[%clk 0:02:36]}  Rd7 {[%clk 0:01:46]} 17. Qf3 {[%clk 0:02:15]}  Rad8 {[%clk 0:01:39]} 18. Rde2 {[%clk 0:02:12]}  a6 {[%clk 0:01:01]} 19. Qh3 {[%clk 0:02:07]}  Bb5 {[%clk 0:00:46]} 20. Bxb5 {[%clk 0:01:58]}  axb5 {[%clk 0:00:44]} 21. a3 {[%clk 0:01:57]}  Nd5 {[%clk 0:00:32]} 22. Bc1 {[%clk 0:01:55]}  Bf6 {[%clk 0:00:32]} 23. Nf3 {[%clk 0:01:51]}  Ne7 {[%clk 0:00:25]} 24. Qg4 {[%clk 0:01:48]}  Ng6 {[%clk 0:00:24]} 25. h4 {[%clk 0:01:45]}  Qc5 {[%clk 0:00:18]} 26. h5 {[%clk 0:01:43]}  Nf8 {[%clk 0:00:18]} 27. h6 {[%clk 0:01:26]}  Ng6 {[%clk 0:00:11]} 28. hxg7 {[%clk 0:01:25]}  Bxg7 {[%clk 0:00:11]} 29. Bg5 {[%clk 0:01:22]}  Re8 {[%clk 0:00:07]} 30. Qh3 {[%clk 0:01:16]}  Qc4 {[%clk 0:00:05]} 31. Bc1 {[%clk 0:01:11]}  Nf4 {[%clk 0:00:04]} 32. Bxf4 {[%clk 0:01:09]}  Qxf4 {[%clk 0:00:05]} 33. Re4 {[%clk 0:01:09]}  Qf6 {[%clk 0:00:04]} 34. Qh5 {[%clk 0:01:07]}  Qg6 {[%clk 0:00:05]} 35. Qxb5 {[%clk 0:01:05]}  Rd5 {[%clk 0:00:03]} 36. Qxe8+ {[%clk 0:01:05]}  Bf8 {[%clk 0:00:03]} 37. Ne5 {[%clk 0:01:03]}  Qf5 {[%clk 0:00:00]} 38. Rg4+ {[%clk 0:01:02]} 1-0


[Site "https://www.chess.com"]

[Event "Titled Tuesday Blitz August 08 Early 2023"]
[White "Tarhan, Adar"]
[Black "Shohat, Yotam"]
[WhiteFideId "34544712"]
[BlackFideId "2813955"]
[WhiteElo "2634"]
[BlackElo "2482"]
[Result "1-0"]
[Round "5"]
[TimeControl "180+1"]
[Date "2023.08.08"]
[WhiteClock "0:00:33"]
[BlackClock "0:00:01"]
[Board "113"]

1. d4 {[%clk 0:02:58]}  Nf6 {[%clk 0:02:59]} 2. Bg5 {[%clk 0:02:51]}  d5 {[%clk 0:02:58]} 3. Bxf6 {[%clk 0:02:48]}  exf6 {[%clk 0:02:58]} 4. c4 {[%clk 0:02:46]}  c5 {[%clk 0:02:54]} 5. cxd5 {[%clk 0:02:38]}  Qxd5 {[%clk 0:02:51]} 6. Nf3 {[%clk 0:02:31]}  cxd4 {[%clk 0:02:43]} 7. Nc3 {[%clk 0:02:30]}  Bb4 {[%clk 0:02:29]} 8. Qa4+ {[%clk 0:02:18]}  Nc6 {[%clk 0:02:28]} 9. Qxb4 {[%clk 0:02:18]}  Nxb4 {[%clk 0:02:29]} 10. Nxd5 {[%clk 0:02:18]}  Nxd5 {[%clk 0:02:30]} 11. Nxd4 {[%clk 0:02:18]}  Be6 {[%clk 0:02:24]} 12. e3 {[%clk 0:02:17]}  Ke7 {[%clk 0:02:19]} 13. Be2 {[%clk 0:02:13]}  Rac8 {[%clk 0:02:16]} 14. Bf3 {[%clk 0:02:12]}  Rhd8 {[%clk 0:02:09]} 15. a3 {[%clk 0:01:56]}  f5 {[%clk 0:02:07]} 16. g3 {[%clk 0:01:54]}  g6 {[%clk 0:02:03]} 17. O-O {[%clk 0:01:50]}  a6 {[%clk 0:02:02]} 18. Rac1 {[%clk 0:01:49]}  h5 {[%clk 0:01:56]} 19. h4 {[%clk 0:01:48]}  Kd6 {[%clk 0:01:32]} 20. Rfd1 {[%clk 0:01:45]}  Rxc1 {[%clk 0:01:30]} 21. Rxc1 {[%clk 0:01:45]}  Rc8 {[%clk 0:01:29]} 22. Rd1 {[%clk 0:01:40]}  Ke5 {[%clk 0:01:13]} 23. Kf1 {[%clk 0:01:34]}  b5 {[%clk 0:01:10]} 24. Ke2 {[%clk 0:01:32]}  Rc4 {[%clk 0:01:04]} 25. Kd2 {[%clk 0:01:05]}  f4 {[%clk 0:00:40]} 26. gxf4+ {[%clk 0:01:03]}  Nxf4 {[%clk 0:00:39]} 27. Nc6+ {[%clk 0:00:49]}  Rxc6 {[%clk 0:00:21]} 28. Bxc6 {[%clk 0:00:50]}  Nh3 {[%clk 0:00:20]} 29. f4+ {[%clk 0:00:36]}  Kf5 {[%clk 0:00:13]} 30. Bf3 {[%clk 0:00:36]}  Nf2 {[%clk 0:00:12]} 31. Rc1 {[%clk 0:00:33]}  Ne4+ {[%clk 0:00:05]} 32. Kd3 {[%clk 0:00:34]}  Nf6 {[%clk 0:00:01]} 33. Rc5+ {[%clk 0:00:33]} 1-0


[Site "https://www.chess.com"]

[Event "Titled Tuesday Blitz August 08 Early 2023"]
[White "kuanysh1981"]
[Black "Gamayev, Oleg"]
[BlackFideId "2802813"]
[WhiteElo "2481"]
[BlackElo "2623"]
[Result "1-0"]
[Round "5"]
[TimeControl "180+1"]
[Date "2023.08.08"]
[WhiteClock "0:01:57"]
[BlackClock "0:02:14"]
[Board "115"]

1. d4 {[%clk 0:02:59]}  d6 {[%clk 0:02:58]} 2. c4 {[%clk 0:02:57]}  Nf6 {[%clk 0:02:59]} 3. Nc3 {[%clk 0:02:57]}  e5 {[%clk 0:03:00]} 4. Nf3 {[%clk 0:02:55]}  exd4 {[%clk 0:03:00]} 5. Nxd4 {[%clk 0:02:55]}  c6 {[%clk 0:03:01]} 6. g3 {[%clk 0:02:53]}  Nbd7 {[%clk 0:03:01]} 7. Bg2 {[%clk 0:02:53]}  Nb6 {[%clk 0:03:02]} 8. b3 {[%clk 0:02:53]}  Be7 {[%clk 0:03:02]} 9. O-O {[%clk 0:02:52]}  O-O {[%clk 0:03:03]} 10. a4 {[%clk 0:02:49]}  a5 {[%clk 0:03:02]} 11. Bb2 {[%clk 0:02:49]}  Re8 {[%clk 0:03:02]} 12. e4 {[%clk 0:02:48]}  Bf8 {[%clk 0:03:02]} 13. h3 {[%clk 0:02:48]}  Nbd7 {[%clk 0:03:01]} 14. Re1 {[%clk 0:02:47]}  Nc5 {[%clk 0:03:01]} 15. Qc2 {[%clk 0:02:46]}  Qb6 {[%clk 0:03:01]} 16. Rad1 {[%clk 0:02:44]}  Na6 {[%clk 0:03:01]} 17. Kh2 {[%clk 0:02:38]}  Nd7 {[%clk 0:03:00]} 18. Nf5 {[%clk 0:02:33]}  Qc7 {[%clk 0:02:57]} 19. Ne2 {[%clk 0:02:28]}  Nb4 {[%clk 0:02:55]} 20. Qc3 {[%clk 0:02:26]}  f6 {[%clk 0:02:39]} 21. f4 {[%clk 0:02:20]}  Nc5 {[%clk 0:02:39]} 22. Ned4 {[%clk 0:02:17]}  Bxf5 {[%clk 0:02:29]} 23. Nxf5 {[%clk 0:02:17]}  Rad8 {[%clk 0:02:29]} 24. Rd2 {[%clk 0:02:01]}  g6 {[%clk 0:02:22]} 25. Qxf6 {[%clk 0:01:57]}  gxf5 {[%clk 0:02:17]} 26. Qh8+ {[%clk 0:01:57]}  Kf7 {[%clk 0:02:18]} 27. Qxh7+ {[%clk 0:01:58]}  Ke6 {[%clk 0:02:14]} 28. exf5# {[%clk 0:01:57]} 1-0


[Site "https://www.chess.com"]

[Event "Titled Tuesday Blitz August 08 Early 2023"]
[White "HamedWafa4"]
[Black "Rosh Jain"]
[BlackFideId "25789465"]
[WhiteElo "2618"]
[BlackElo "2480"]
[Result "1-0"]
[Round "5"]
[TimeControl "180+1"]
[Date "2023.08.08"]
[WhiteClock "0:01:18"]
[BlackClock "0:00:01"]
[Board "116"]

1. e4 {[%clk 0:03:00]}  c5 {[%clk 0:02:51]} 2. Nf3 {[%clk 0:02:58]}  d6 {[%clk 0:02:51]} 3. Bb5+ {[%clk 0:02:56]}  Nd7 {[%clk 0:02:51]} 4. c4 {[%clk 0:02:51]}  Nf6 {[%clk 0:02:50]} 5. O-O {[%clk 0:02:50]}  Nxe4 {[%clk 0:02:49]} 6. Re1 {[%clk 0:02:49]}  Nf6 {[%clk 0:02:48]} 7. d4 {[%clk 0:02:46]}  cxd4 {[%clk 0:02:49]} 8. Nxd4 {[%clk 0:02:47]}  g6 {[%clk 0:02:49]} 9. Nc6 {[%clk 0:02:45]}  bxc6 {[%clk 0:02:47]} 10. Bxc6 {[%clk 0:02:46]}  Rb8 {[%clk 0:02:45]} 11. Qxd6 {[%clk 0:02:44]}  Qa5 {[%clk 0:01:03]} 12. Nc3 {[%clk 0:02:17]}  Kd8 {[%clk 0:00:28]} 13. Qf4 {[%clk 0:02:00]}  Qc7 {[%clk 0:00:23]} 14. Qf3 {[%clk 0:01:54]}  Bb7 {[%clk 0:00:20]} 15. Bxb7 {[%clk 0:01:48]}  Qxb7 {[%clk 0:00:21]} 16. Nd5 {[%clk 0:01:47]}  Nxd5 {[%clk 0:00:18]} 17. cxd5 {[%clk 0:01:46]}  Nf6 {[%clk 0:00:18]} 18. Bf4 {[%clk 0:01:44]}  Rc8 {[%clk 0:00:18]} 19. Rad1 {[%clk 0:01:43]}  Nd7 {[%clk 0:00:10]} 20. Bd2 {[%clk 0:01:36]}  Bg7 {[%clk 0:00:08]} 21. Qxf7 {[%clk 0:01:35]}  Bf6 {[%clk 0:00:08]} 22. Bc3 {[%clk 0:01:32]}  Rf8 {[%clk 0:00:06]} 23. Qxh7 {[%clk 0:01:31]}  Bxc3 {[%clk 0:00:06]} 24. Qxe7+ {[%clk 0:01:31]}  Kc7 {[%clk 0:00:06]} 25. bxc3 {[%clk 0:01:31]}  Kb8 {[%clk 0:00:07]} 26. Rb1 {[%clk 0:01:31]}  Nb6 {[%clk 0:00:06]} 27. Qe5+ {[%clk 0:01:30]}  Ka8 {[%clk 0:00:06]} 28. d6 {[%clk 0:01:29]}  Qf7 {[%clk 0:00:06]} 29. f3 {[%clk 0:01:26]}  Qb7 {[%clk 0:00:05]} 30. a4 {[%clk 0:01:25]}  Qc6 {[%clk 0:00:04]} 31. a5 {[%clk 0:01:25]}  Nd7 {[%clk 0:00:04]} 32. Qe7 {[%clk 0:01:25]}  a6 {[%clk 0:00:03]} 33. Kh1 {[%clk 0:01:24]}  Rce8 {[%clk 0:00:02]} 34. Qxe8+ {[%clk 0:01:23]}  Rxe8 {[%clk 0:00:03]} 35. Rxe8+ {[%clk 0:01:23]}  Ka7 {[%clk 0:00:04]} 36. Rd1 {[%clk 0:01:23]}  Qxc3 {[%clk 0:00:04]} 37. Re7 {[%clk 0:01:23]}  Qc6 {[%clk 0:00:04]} 38. Rg7 {[%clk 0:01:23]}  Qa4 {[%clk 0:00:03]} 39. Re1 {[%clk 0:01:22]}  Kb8 {[%clk 0:00:02]} 40. h3 {[%clk 0:01:21]}  Qxa5 {[%clk 0:00:01]} 41. Re8+ {[%clk 0:01:20]}  Kb7 {[%clk 0:00:01]} 42. Rxd7+ {[%clk 0:01:19]}  Kc6 {[%clk 0:00:02]} 43. Rde7 {[%clk 0:01:19]}  Qa1+ {[%clk 0:00:01]} 44. Re1 {[%clk 0:01:19]}  Kxd6 {[%clk 0:00:01]} 45. Rxa1 {[%clk 0:01:18]} 1-0


[Site "https://www.chess.com"]

[Event "Titled Tuesday Blitz August 08 Early 2023"]
[White "Komov, Roman"]
[Black "slidingknight2775"]
[WhiteFideId "24175714"]
[WhiteElo "2611"]
[BlackElo "2464"]
[Result "1/2-1/2"]
[Round "5"]
[TimeControl "180+1"]
[Date "2023.08.08"]
[WhiteClock "0:00:07"]
[BlackClock "0:00:10"]
[Board "120"]

1. e4 {[%clk 0:03:00]}  c6 {[%clk 0:02:59]} 2. d4 {[%clk 0:03:00]}  d5 {[%clk 0:03:00]} 3. e5 {[%clk 0:03:00]}  Bf5 {[%clk 0:03:00]} 4. h4 {[%clk 0:03:00]}  h5 {[%clk 0:03:00]} 5. c4 {[%clk 0:03:00]}  e6 {[%clk 0:02:59]} 6. Nc3 {[%clk 0:03:00]}  Nd7 {[%clk 0:02:58]} 7. cxd5 {[%clk 0:02:59]}  cxd5 {[%clk 0:02:57]} 8. Bd3 {[%clk 0:02:59]}  Bxd3 {[%clk 0:02:56]} 9. Qxd3 {[%clk 0:03:00]}  a6 {[%clk 0:02:54]} 10. Nf3 {[%clk 0:02:57]}  Nh6 {[%clk 0:02:51]} 11. O-O {[%clk 0:02:38]}  Nf5 {[%clk 0:02:50]} 12. Nxd5 {[%clk 0:02:37]}  Nxe5 {[%clk 0:02:34]} 13. dxe5 {[%clk 0:02:33]}  Qxd5 {[%clk 0:02:34]} 14. Qxd5 {[%clk 0:02:34]}  exd5 {[%clk 0:02:35]} 15. Rd1 {[%clk 0:02:34]}  Be7 {[%clk 0:02:28]} 16. Rxd5 {[%clk 0:02:32]}  Nxh4 {[%clk 0:02:28]} 17. Nxh4 {[%clk 0:02:32]}  Bxh4 {[%clk 0:02:29]} 18. Be3 {[%clk 0:02:27]}  Rd8 {[%clk 0:02:26]} 19. Rad1 {[%clk 0:02:19]}  Rxd5 {[%clk 0:02:22]} 20. Rxd5 {[%clk 0:02:20]}  Be7 {[%clk 0:02:13]} 21. Bb6 {[%clk 0:02:13]}  Rh6 {[%clk 0:02:10]} 22. Bd4 {[%clk 0:02:09]}  Rc6 {[%clk 0:02:06]} 23. Bc3 {[%clk 0:02:07]}  g6 {[%clk 0:01:59]} 24. g3 {[%clk 0:02:02]}  Rc7 {[%clk 0:01:35]} 25. Rd3 {[%clk 0:01:43]}  Rd7 {[%clk 0:01:26]} 26. Re3 {[%clk 0:01:41]}  Rd1+ {[%clk 0:01:26]} 27. Kg2 {[%clk 0:01:39]}  Kd7 {[%clk 0:01:25]} 28. Kf3 {[%clk 0:01:35]}  Ke6 {[%clk 0:01:24]} 29. Ke2 {[%clk 0:01:29]}  Rd5 {[%clk 0:01:23]} 30. Re4 {[%clk 0:01:28]}  g5 {[%clk 0:00:59]} 31. Rc4 {[%clk 0:01:23]}  Rc5 {[%clk 0:00:58]} 32. Re4 {[%clk 0:01:19]}  g4 {[%clk 0:00:46]} 33. f3 {[%clk 0:01:03]}  gxf3+ {[%clk 0:00:44]} 34. Kxf3 {[%clk 0:01:03]}  b5 {[%clk 0:00:37]} 35. Ke2 {[%clk 0:00:24]}  Rd5 {[%clk 0:00:30]} 36. a3 {[%clk 0:00:23]}  Bd8 {[%clk 0:00:24]} 37. Rf4 {[%clk 0:00:17]}  Bg5 {[%clk 0:00:13]} 38. Rf1 {[%clk 0:00:17]}  h4 {[%clk 0:00:12]} 39. gxh4 {[%clk 0:00:16]}  Bxh4 {[%clk 0:00:13]} 40. Rh1 {[%clk 0:00:17]}  Bg3 {[%clk 0:00:07]} 41. Rh6+ {[%clk 0:00:16]}  Ke7 {[%clk 0:00:07]} 42. Rxa6 {[%clk 0:00:15]}  Bxe5 {[%clk 0:00:07]} 43. Bb4+ {[%clk 0:00:13]}  Kd7 {[%clk 0:00:06]} 44. Ra7+ {[%clk 0:00:12]}  Ke6 {[%clk 0:00:07]} 45. Ra6+ {[%clk 0:00:12]}  Kd7 {[%clk 0:00:07]} 46. b3 {[%clk 0:00:13]}  f5 {[%clk 0:00:07]} 47. Ke3 {[%clk 0:00:12]}  Bd6 {[%clk 0:00:05]} 48. Bc3 {[%clk 0:00:04]}  Bc5+ {[%clk 0:00:03]} 49. Ke2 {[%clk 0:00:05]}  Bd6 {[%clk 0:00:03]} 50. Bd2 {[%clk 0:00:05]}  Re5+ {[%clk 0:00:02]} 51. Kf3 {[%clk 0:00:05]}  Rd5 {[%clk 0:00:03]} 52. Ke2 {[%clk 0:00:04]}  Re5+ {[%clk 0:00:04]} 53. Kf2 {[%clk 0:00:04]}  Rd5 {[%clk 0:00:05]} 54. Be3 {[%clk 0:00:04]}  Bc5 {[%clk 0:00:05]} 55. Bxc5 {[%clk 0:00:04]}  Rxc5 {[%clk 0:00:06]} 56. Ke2 {[%clk 0:00:04]}  Rc3 {[%clk 0:00:06]} 57. a4 {[%clk 0:00:04]}  Rxb3 {[%clk 0:00:06]} 58. a5 {[%clk 0:00:04]}  Ra3 {[%clk 0:00:07]} 59. Ra7+ {[%clk 0:00:04]}  Kc6 {[%clk 0:00:07]} 60. Rf7 {[%clk 0:00:04]}  Rxa5 {[%clk 0:00:07]} 61. Rxf5 {[%clk 0:00:04]}  Kb6 {[%clk 0:00:08]} 62. Kd2 {[%clk 0:00:05]}  Ra4 {[%clk 0:00:08]} 63. Kc2 {[%clk 0:00:05]}  Ka5 {[%clk 0:00:08]} 64. Kb3 {[%clk 0:00:05]}  Rb4+ {[%clk 0:00:08]} 65. Ka3 {[%clk 0:00:05]}  Ra4+ {[%clk 0:00:09]} 66. Kb3 {[%clk 0:00:05]}  Rb4+ {[%clk 0:00:10]} 67. Ka3 {[%clk 0:00:06]}  Ra4+ {[%clk 0:00:10]} 68. Kb3 {[%clk 0:00:07]} 1/2-1/2


[Site "https://www.chess.com"]